fUSD/lending_fUSD_20260121
["ID","MTS","AMOUNT","RATE_DAILY","PERIOD"]
[402951407,1769014241641,-1321.57411122,0.0001797,2]
[402951408,1769014241650,-500.0,0.00017972,2]
[402951409,1769014241659,-164.45892503,0.00017972,2]
[402951410,1769014241669,-150.0,0.00017972,2]
[402951411,1769014241678,-500.0,0.00017972,2]
[402951412,1769014241687,-500.0,0.00017972,2]
[402951413,1769014241696,-655.0,0.00017972,2]
[402951414,1769014241705,-500.0,0.00017972,2]
[402951415,1769014241714,-357.1948729,0.00017972,2]
[402951416,1769014241723,-500.0,0.00017972,2]
[402951417,1769014241732,-500.0,0.00017972,2]
[402951418,1769014241742,-500.0,0.00017972,2]
[402951419,1769014241751,-472.0,0.00017972,2]
[402951420,1769014241759,-500.0,0.00017972,2]
[402951421,1769014241768,-500.0,0.00017972,2]
[402951422,1769014241777,-150.0,0.00017972,2]
[402951423,1769014241787,-461.0,0.00017972,2]
[402951424,1769014241797,-150.0,0.00017972,2]
[402951425,1769014241807,-500.0,0.00017972,2]
[402951426,1769014241816,-500.0,0.00017972,2]
[402951427,1769014241826,-500.0,0.00017972,2]
[402951428,1769014241836,-15055.0,0.00017973,2]
[402951429,1769014241845,-30935.0,0.00017973,2]
[402951430,1769014241854,-150.0,0.00017973,2]
[402951431,1769014241865,-500.0,0.00017982,2]
[402951432,1769014241876,-534.55345717,0.0001799,2]
[402951433,1769014241885,-534.55345717,0.0001799,2]
[402951434,1769014241894,-151.0,0.00017997,2]
[402951435,1769014241904,-500.0,0.00017998,2]
[402951436,1769014241913,-150.0,0.00017999,2]
[402951437,1769014241922,-252.48903335,0.00017999,2]
[402951438,1769014241932,-6994.9698668,0.00017999,2]
[402951439,1769014241942,-1112.32457965,0.00017999,5]
[402951440,1769014241951,-1112.32457964,0.00017999,5]
[402951441,1769014241960,-907.329708,0.00017999,2]
[402951442,1769014241969,-300.0,0.00017999,2]
[402951443,1769014241978,-666.0,0.00017999,2]
[402951444,1769014241988,-300.0,0.00017999,2]
[402951445,1769014241997,-300.0,0.00017999,2]
[402951446,1769014242006,-666.0,0.00017999,2]
[402951447,1769014242015,-150.0,0.00017999,2]
[402951448,1769014242024,-150.0,0.00017999,2]
[402951449,1769014242033,-1882090.29159844,0.00018,2]
[402951450,1769014242048,-3390.88082498,0.00018,2]
[402951451,1769014242059,-939.77240267,0.00018,2]
[402951452,1769014242070,-4887.46089167,0.00018,2]
[402951453,1769014242081,-2408.43261007,0.00018,2]
[402951454,1769014242095,-3893.91321938,0.00018,2]
[402951455,1769014242541,-151.0,0.00016814,2]
[402951456,1769014242551,-226.52272345,0.00017347,2]
[402951457,1769014242563,-12499.63332738,0.00017347,2]
[402951458,1769014242572,-3809.87171245,0.00018,2]
[402951459,1769014242583,-378.70255023,0.00018,2]
[402951460,1769014242594,-783.23849917,0.00018,2]
[402951461,1769014242632,-1856.283,0.00018,2]
[402951462,1769014242644,-324.7079367,0.00018,2]
[402951513,1769014243927,-732.80617441,0.00018,2]
[402951514,1769014243938,-57999.9999999,0.00018,2]
[402951515,1769014244000,-500.82624166,0.00018,2]
[402951516,1769014244011,-746.487,0.00018,2]
[402951517,1769014244043,-5148.72209,0.00018,2]
[402951518,1769014244144,-3528.8,0.00018,2]
[402951526,1769014246253,-151.0,0.0001713,2]
[402951527,1769014246262,-140.3,0.00017439,2]
[402951530,1769014246310,-12585.85605083,0.00017439,2]
[402951532,1769014246320,-6403.55383279,0.00018,2]
[402951533,1769014246330,-1680.99124998,0.00018,2]
[402951537,1769014246376,-1778.6626329,0.00018,2]
[402951538,1769014246387,-257.42503718,0.00018,2]
[402951542,1769014246439,-14505.00000003,0.00018,2]
[402951546,1769014296911,-842133.8217508,0.00018,2]
[402951547,1769014297627,-7411.47712225,0.00018,2]
[402951548,1769014297663,-12714.54804547,0.00018,2]
[402951549,1769014297739,-598.27500379,0.00018,2]
[402951550,1769014320720,178.756,0.00016311,2]
[402951551,1769014521467,3240.0,0.00016177,2]
[402951553,1769014611465,1000.0,0.00015996,2]
[402951554,1769014691309,2284.07,0.00015864,2]
[402951555,1769014852581,188.17,0.00015831,2]
[402951556,1769015017933,150.0,0.00015704,2]
[402951557,1769015045459,500.0,0.00015703,2]
[402951558,1769015204167,809.0,0.00016219,2]
[402951559,1769015249183,500.0,0.00016253,2]
[402951560,1769015250121,655.0,0.00016253,2]
[402951561,1769015250163,500.0,0.00016253,2]
[402951562,1769015250940,689.0,0.00016253,2]
[402951563,1769015251480,-155.82606753,0.00016308,2]
[402951564,1769015252309,472.0,0.00016253,2]
[402951565,1769015254529,-160.79240547,0.00016308,2]
[402951566,1769015255291,500.0,0.00016253,2]
[402951567,1769015255714,-183.381527,0.00016308,2]
[402951568,1769015255737,-25.43940016,0.00016308,2]
[402951569,1769015258210,-294.17386919,0.00016308,2]
[402951570,1769015261572,-228.08017006,0.00016308,2]
[402951571,1769015264322,-107.30656059,0.00016308,2]
[402951572,1769015264345,-98.12695597,0.00016308,2]
[402951573,1769015266009,-300.13472522,0.00016308,2]
[402951574,1769015268065,153.14894232,0.00016253,2]
[402951575,1769015268432,500.0,0.00016253,2]
[402951576,1769015269466,500.0,0.00016253,2]
[402951577,1769015269575,-101.73831881,0.00016308,2]
[402951578,1769015269599,-156.99260718,0.00016308,2]
[402951579,1769015271003,500.0,0.00016253,2]
[402951580,1769015271228,250.57177377,0.00016253,2]
[402951581,1769015272490,292.78080134,0.00016253,2]
[402951582,1769015272539,-198.05781455,0.00016308,2]
[402951583,1769015272743,150.0,0.00016253,2]
[402951584,1769015273779,-193.01752482,0.00016308,2]
[402951585,1769015275706,500.0,0.00016253,2]
[402951586,1769015276620,500.0,0.00016253,2]
[402951587,1769015276817,500.0,0.00016253,2]
[402951588,1769015277066,150.0,0.00016253,2]
[402951589,1769015277095,500.0,0.00016253,2]
[402951590,1769015277524,150.0,0.00016253,2]
[402951591,1769015277554,150.65315728,0.00016253,2]
[402951592,1769015277677,-140.93205345,0.00016308,2]
[402951593,1769015277700,-44.27777582,0.00016308,2]
[402951594,1769015277937,500.0,0.00016253,2]
[402951595,1769015278016,221.17629805,0.00016253,2]
[402951596,1769015278644,-361.16864265,0.00016308,2]
[402951597,1769015280171,-66.55358153,0.00016308,2]
[402951598,1769015280196,-228.01290191,0.00016308,2]
[402951599,1769015281633,-174.51467004,0.00016307,2]
[402951600,1769015285488,-125.48532996,0.00016307,2]
[402951601,1769015285512,-54.93522312,0.00016308,2]
[402951602,1769015286985,-217.05187497,0.00016308,2]
[402951603,1769015287007,-10.82319746,0.00016308,2]
[402951604,1769015288465,-190.08630027,0.00016308,2]
[402951605,1769015291627,-250.0,0.00016307,2]
[402951606,1769015291649,-78.74027663,0.00016308,2]
[402951607,1769015294176,-199.55762914,0.00016308,2]
[402951608,1769015295904,-20.7925965,0.00016308,2]
[402951609,1769015295927,-166.4942519,0.00016308,2]
[402951610,1769015298181,-355.34037686,0.00016308,2]
[402951611,1769015301033,-209.21893678,0.00016307,2]
[402951612,1769015303873,-161.30683598,0.00016307,2]
[402951613,1769015305944,-166.59763096,0.00016307,2]
[402951614,1769015307782,-179.11384868,0.00016307,2]
[402951615,1769015310333,-312.7131516,0.00016307,2]
[402951616,1769015312537,-171.049596,0.00016307,2]
[402951617,1769015312560,-228.950404,0.00016308,2]
[402951618,1769015314626,-300.44237086,0.00016308,2]
[402951619,1769015316704,-188.60327397,0.00016308,2]
[402951620,1769015320968,-71.56461447,0.00016308,2]
[402951621,1769015320988,-88.4109215,0.00016308,2]
[402951622,1769015323860,-240.47998311,0.00016308,2]
[402951623,1769015329993,-4.61484349,0.00016308,2]
[402951624,1769015330018,-150.27973249,0.00016308,2]
[402951625,1769015333946,-187.03468216,0.00016308,2]
[402951626,1769015339242,-162.68558535,0.00016308,2]
[402951627,1769015339262,-56.74813127,0.00016308,2]
[402951628,1769015340368,-143.25186873,0.00016308,2]
[402951629,1769015340393,-37.04670374,0.00016308,2]
[402951630,1769015345371,-160.21303988,0.00016308,2]
[402951631,1769015347507,-210.64922317,0.00016308,2]
[402951632,1769015351104,-92.09103321,0.00016308,2]
[402951633,1769015351126,-133.30623306,0.00016308,2]
[402951634,1769015353310,-305.92509768,0.00016308,2]
[402951635,1769015358161,-60.76866926,0.00016308,2]
[402951636,1769015358183,-159.57822226,0.00016308,2]
[402951637,1769015359052,158.86220082,0.00016262,2]
[402951638,1769015360328,-235.99945976,0.00016308,2]
[402951639,1769015363762,-104.42231798,0.00016308,2]
[402951640,1769015363785,-79.80943492,0.00016308,2]
[402951641,1769015364610,150.0,0.00016253,2]
[402951642,1769015364951,47.81682642,0.00016253,2]
[402951643,1769015364974,452.18317358,0.00016253,2]
[402951644,1769015365564,500.0,0.00016253,2]
[402951645,1769015366736,500.0,0.00016253,2]
[402951646,1769015366783,-70.19056508,0.00016308,2]
[402951647,1769015366804,-393.85252287,0.00016308,2]
[402951648,1769015367446,500.0,0.00016253,2]
[402951649,1769015367543,500.0,0.00016253,2]
[402951650,1769015368732,150.0,0.00016253,2]
[402951651,1769015369154,150.0,0.00016253,2]
[402951652,1769015369494,150.0,0.00016253,2]
[402951653,1769015371292,-106.14747713,0.00016308,2]
[402951654,1769015371314,-128.28768202,0.00016308,2]
[402951655,1769015372190,150.0,0.00016253,2]
[402951656,1769015372342,-21.71231798,0.00016308,2]
[402951657,1769015372365,-183.41015407,0.00016308,2]
[402951658,1769015375000,-262.93558953,0.00016308,2]
[402951659,1769015377259,-53.6542564,0.00016308,2]
[402951660,1769015377282,-218.34613483,0.00016308,2]
[402951661,1769015378325,-6.39133424,0.00016308,2]
[402951662,1769015378348,-388.48619371,0.00016308,2]
[402951663,1769015381953,-111.51380629,0.00016308,2]
[402951664,1769015381976,-246.12139116,0.00016308,2]
[402951665,1769015384236,-253.87860884,0.00016308,2]
[402951666,1769015384259,-105.96732204,0.00016308,2]
[402951667,1769015385677,-338.9671866,0.00016308,2]
[402951668,1769015388685,-55.06549136,0.00016308,2]
[402951669,1769015388706,-177.65975597,0.00016308,2]
[402951670,1769015390617,-231.39722472,0.00016308,2]
[402951671,1769015394072,-90.94301931,0.00016308,2]
[402951672,1769015394101,-136.0362373,0.00016308,2]
[402951673,1769015397144,-300.0,0.00016308,2]
[402951674,1769015399550,-63.9637627,0.00016308,2]
[402951675,1769015399572,-150.0,0.00016308,2]
[402951676,1769015399595,-114.79755208,0.00016341,2]
[402951677,1769015402848,-36.20244792,0.00016341,2]
[402951678,1769015402870,-121.4815086,0.00016343,2]
[402951679,1769015403953,-156.27,0.00016334,2]
[402951680,1769015403975,-125.99228161,0.00016343,2]
[402951681,1769015405698,-317.24211769,0.00016334,2]
[402951682,1769015407031,-241.89086637,0.00016334,2]
[402951683,1769015408626,-367.24701594,0.00016334,2]
[402951684,1769015408647,-423.92275899,0.00016334,2]
[402951685,1769015410795,-251.01652615,0.00016334,2]
[402951686,1769015416647,1247.12,0.00015613,2]
[402951692,1769015431524,-287.0,0.00016341,2]
[402951693,1769015431534,-302.52620979,0.00016343,2]
[402951694,1769015431544,-150.0,0.00016343,2]
[402951695,1769015431553,-219.0,0.00016343,2]
[402951696,1769015431563,-1200.0,0.00016343,2]
[402951697,1769015431572,-300.0,0.00016343,2]
[402951698,1769015431582,-189.91484614,0.00016343,2]
[402951699,1769015431591,-8988.52852868,0.00016344,2]
[402951716,1769015437479,-1628.25690404,0.00016344,2]
[402951717,1769015437489,-3529.68636415,0.00016344,2]
[402951718,1769015437518,-985853.52820313,0.00016344,2]
[402951719,1769015437527,-500.0,0.00016363,2]
[402951720,1769015437537,-655.0,0.00016363,2]
[402951721,1769015437545,-500.0,0.00016363,2]
[402951722,1769015437555,-689.0,0.00016363,2]
[402951723,1769015437564,-472.0,0.00016363,2]
[402951724,1769015437574,-500.0,0.00016363,2]
[402951725,1769015437583,-191.31290121,0.00016363,2]
[402951726,1769015437593,-500.0,0.00016363,2]
[402951727,1769015437603,-500.0,0.00016363,2]
[402951728,1769015437614,-500.0,0.00016363,2]
[402951729,1769015437623,-153.53248348,0.00016363,2]
[402951730,1769015437633,-500.0,0.00016363,2]
[402951731,1769015437643,-150.0,0.00016363,2]
[402951732,1769015437652,-522.45367867,0.00016363,2]
[402951733,1769015437662,-150.0,0.00016363,2]
[402951734,1769015437671,-500.0,0.00016363,2]
[402951735,1769015437680,-500.0,0.00016363,2]
[402951736,1769015437689,-500.0,0.00016363,2]
[402951737,1769015437698,-500.0,0.00016363,2]
[402951738,1769015437707,-500.0,0.00016363,2]
[402951739,1769015437716,-500.0,0.00016363,2]
[402951740,1769015437725,-200.0,0.00016363,2]
[402951741,1769015437734,-328.76131478,0.00016415,2]
[402951742,1769015437743,-500.0,0.00016417,2]
[402951743,1769015437752,-655.0,0.00016417,2]
[402951744,1769015437762,-689.0,0.00016417,2]
[402951745,1769015437771,-472.0,0.00016417,2]
[402951746,1769015437780,-500.0,0.00016417,2]
[402951747,1769015437790,-500.0,0.00016417,2]
[402951748,1769015437799,-500.0,0.00016417,2]
[402951749,1769015437808,-500.0,0.00016417,2]
[402951750,1769015437818,-500.0,0.00016417,2]
[402951751,1769015437827,-164.45892503,0.00016417,2]
[402951752,1769015437836,-150.0,0.00016417,2]
[402951753,1769015437846,-500.0,0.00016417,2]
[402951754,1769015437855,-500.0,0.00016417,2]
[402951755,1769015437865,-500.0,0.00016417,2]
[402951756,1769015437875,-500.0,0.00016417,2]
[402951757,1769015437885,-500.0,0.00016417,2]
[402951758,1769015437894,-500.0,0.00016417,2]
[402951759,1769015437903,-150.0,0.00016438,2]
[402951760,1769015437913,-500.0,0.00016443,2]
[402951761,1769015437923,-500.0,0.00016443,2]
[402951762,1769015437932,-500.0,0.00016443,2]
[402951763,1769015437942,-500.0,0.00016443,2]
[402951764,1769015437951,-282.10765682,0.00016444,2]
[402951765,1769015437960,-288.79873781,0.00016444,2]
[402951766,1769015437969,-152.14592756,0.00016444,2]
[402951767,1769015437979,-7725.78573337,0.00016444,2]
[402951768,1769015437988,-16281.88274734,0.00016444,2]
[402951769,1769015437997,-500.0,0.00016444,2]
[402951770,1769015438006,-150.00569123,0.00016472,2]
[402951771,1769015438015,-209.64382423,0.00016472,2]
[402951772,1769015438024,-655.0,0.00016472,2]
[402951773,1769015438034,-689.0,0.00016472,2]
[402951774,1769015438043,-472.0,0.00016472,2]
[402951775,1769015438053,-500.0,0.00016472,2]
[402951776,1769015438062,-583.97306392,0.00016472,2]
[402951777,1769015438071,-500.0,0.00016472,2]
[402951778,1769015438081,-500.0,0.00016472,2]
[402951779,1769015438091,-500.0,0.00016472,2]
[402951780,1769015438100,-500.0,0.00016472,2]
[402951781,1769015438109,-500.0,0.00016472,2]
[402951782,1769015438119,-500.0,0.00016472,2]
[402951783,1769015438128,-500.0,0.00016472,2]
[402951784,1769015438138,-150.0,0.00016493,2]
[402951785,1769015438148,-3662.01,0.00016517,2]
[402951787,1769015438159,-151.0,0.00016519,2]
[402951789,1769015438169,-151.0,0.00016519,2]
[402951791,1769015438181,-151.0,0.00016519,2]
[402951793,1769015438191,-151.0,0.00016519,2]
[402951795,1769015438200,-151.0,0.00016519,2]
[402951796,1769015438211,-151.0,0.00016519,2]
[402951799,1769015438221,-151.0,0.00016519,2]
[402951801,1769015438231,-151.0,0.00016519,2]
[402951803,1769015438240,-500.0,0.00016519,2]
[402951804,1769015438251,-151.0,0.00016519,2]
[402951806,1769015438261,-151.0,0.00016519,2]
[402951808,1769015438270,-500.0,0.00016519,2]
[402951810,1769015438279,-151.0,0.00016519,2]
[402951812,1769015438288,-151.0,0.00016519,2]
[402951814,1769015438298,-500.0,0.00016519,2]
[402951816,1769015438307,-151.0,0.00016519,2]
[402951818,1769015438317,-151.0,0.00016519,2]
[402951820,1769015438327,-500.0,0.00016519,2]
[402951822,1769015438337,-151.0,0.00016519,2]
[402951824,1769015438347,-151.0,0.00016519,2]
[402951826,1769015438356,-500.0,0.00016519,2]
[402951828,1769015438366,-151.0,0.00016519,2]
[402951831,1769015438375,-500.0,0.00016519,2]
[402951833,1769015438386,-500.0,0.00016519,2]
[402951835,1769015438395,-151.0,0.00016519,2]
[402951837,1769015438404,-151.0,0.00016519,2]
[402951839,1769015438414,-500.0,0.00016519,2]
[402951841,1769015438423,-500.0,0.00016519,2]
[402951843,1769015438433,-205.06792171,0.00016519,2]
[402951845,1769015438443,-151.0,0.00016519,2]
[402951847,1769015438452,-500.0,0.00016519,2]
[402951849,1769015438461,-1129.91,0.00016519,2]
[402951851,1769015438471,-655.0,0.00016527,2]
[402951853,1769015438482,-689.0,0.00016527,2]
[402951855,1769015438491,-472.0,0.00016527,2]
[402951857,1769015438500,-245.87988596,0.00016527,2]
[402951859,1769015438510,-500.0,0.00016527,2]
[402951861,1769015438519,-305.76176181,0.00016527,2]
[402951863,1769015438528,-500.0,0.00016527,2]
[402951865,1769015438538,-500.0,0.00016527,2]
[402951867,1769015438547,-500.0,0.00016527,2]
[402951869,1769015438556,-500.0,0.00016527,2]
[402951871,1769015438566,-500.0,0.00016527,2]
[402951873,1769015438575,-1112.32457964,0.00016527,5]
[402951875,1769015438584,-1802.333,0.00016527,2]
[402951877,1769015438594,-202.342,0.00016527,2]
[402951879,1769015438603,-299.99,0.00016527,4]
[402951881,1769015438613,-1109.96,0.00016527,2]
[402951883,1769015438622,-9999.99,0.00016527,2]
[402951885,1769015438631,-297.9,0.00016527,2]
[402951887,1769015438641,-500.0,0.00016527,2]
[402951889,1769015438650,-500.0,0.00016527,2]
[402951891,1769015438660,-500.0,0.00016527,2]
[402951892,1769015438669,-500.0,0.00016527,2]
[402951893,1769015438678,-640.36783973,0.00016527,2]
[402951894,1769015438687,-423.65781201,0.00016527,2]
[402951895,1769015438695,-500.0,0.00016528,2]
[402951896,1769015438705,-500.0,0.00016528,2]
[402951897,1769015438714,-500.0,0.00016528,2]
[402951898,1769015438724,-500.0,0.00016528,2]
[402951899,1769015438733,-519.05995183,0.00016528,2]
[402951900,1769015438743,-415.05169829,0.00016544,2]
[402951901,1769015438753,-200.0,0.00016548,2]
[402951902,1769015438763,-655.0,0.00016582,2]
[402951903,1769015438772,-689.0,0.00016582,2]
[402951904,1769015438782,-472.0,0.00016582,2]
[402951905,1769015438792,-500.0,0.00016582,2]
[402951906,1769015438802,-500.0,0.00016582,2]
[402951907,1769015438812,-500.0,0.00016582,2]
[402951908,1769015438821,-500.0,0.00016582,2]
[402951909,1769015438831,-500.0,0.00016582,2]
[402951910,1769015438841,-302.7794935,0.00016582,2]
[402951912,1769015438851,-157.0,0.00016584,2]
[402951914,1769015438861,-1530.0,0.00016592,2]
[402951916,1769015438873,-7725.78573334,0.00016606,2]
[402951918,1769015438883,-16281.88274728,0.00016606,2]
[402951920,1769015438893,-439.0,0.00016617,2]
[402951922,1769015438903,-1355.0,0.00016618,2]
[402951924,1769015438913,-379.0,0.00016625,2]
[402951926,1769015438923,-151.0,0.00016631,2]
[402951928,1769015438934,-151.0,0.00016632,2]
[402951930,1769015438944,-151.0,0.00016636,2]
[402951932,1769015438955,-655.0,0.00016637,2]
[402951934,1769015438964,-689.0,0.00016637,2]
[402951936,1769015438975,-472.0,0.00016637,2]
[402951938,1769015438984,-500.0,0.00016637,2]
[402951940,1769015438994,-500.0,0.00016637,2]
[402951942,1769015439004,-500.0,0.00016637,2]
[402951944,1769015439014,-500.0,0.00016637,2]
[402951946,1769015439024,-500.0,0.00016637,2]
[402951948,1769015439035,-12631.0,0.0001664,2]
[402951950,1769015439045,-151.0,0.00016643,2]
[402951952,1769015439056,-493.0,0.0001665,2]
[402951954,1769015439067,-229.0,0.00016651,2]
[402951956,1769015439076,-282.10765682,0.00016652,2]
[402951958,1769015439086,-1151.0,0.00016658,2]
[402951960,1769015439096,-41713.9960128,0.00016669,2]
[402951962,1769015439108,-443.37435585,0.00016683,2]
[402951964,1769015439120,-1747.0,0.00016685,2]
[402951965,1769015439130,-905.46445395,0.00016691,2]
[402951967,1769015439139,-1339.0,0.00016691,2]
[402951969,1769015439150,-655.0,0.00016691,2]
[402951971,1769015439160,-689.0,0.00016691,2]
[402951973,1769015439171,-472.0,0.00016691,2]
[402951975,1769015439183,-500.0,0.00016691,2]
[402951977,1769015439192,-500.0,0.00016691,2]
[402951979,1769015439202,-500.0,0.00016691,2]
[402951981,1769015439214,-150.42477095,0.00016691,2]
[402951983,1769015439225,-500.0,0.00016691,2]
[402951985,1769015439235,-800.0,0.000167,2]
[402951987,1769015439244,-155.96,0.00016706,2]
[402951989,1769015439255,-188.17,0.00016711,2]
[402951991,1769015439264,-1202.74527863,0.00016713,2]
[402951993,1769015439274,-529.0,0.00016718,2]
[402951995,1769015439283,-398.16215466,0.00016718,2]
[402951997,1769015439293,-533.88981491,0.00016723,2]
[402951999,1769015439303,-2000.0,0.00016723,2]
[402952001,1769015439312,-578.20924308,0.00016723,2]
[402952003,1769015439322,-2000.0,0.00016723,2]
[402952005,1769015439331,-2000.0,0.00016723,2]
[402952007,1769015439340,-2000.0,0.00016723,2]
[402952009,1769015439350,-500.0,0.00016723,2]
[402952011,1769015439359,-2000.0,0.00016723,2]
[402952013,1769015439369,-500.0,0.00016723,2]
[402952015,1769015439378,-2000.0,0.00016723,2]
[402952016,1769015439388,-500.0,0.00016723,2]
[402952018,1769015439397,-2000.0,0.00016723,2]
[402952020,1769015439407,-500.0,0.00016723,2]
[402952022,1769015439417,-2000.0,0.00016723,2]
[402952024,1769015439426,-247.61564432,0.00016723,2]
[402952026,1769015439436,-500.0,0.00016723,2]
[402952028,1769015439445,-500.0,0.00016723,2]
[402952030,1769015439455,-2000.0,0.00016723,2]
[402952032,1769015439464,-2000.0,0.00016723,2]
[402952034,1769015439474,-250.0,0.00016723,2]
[402952036,1769015439484,-500.0,0.00016723,2]
[402952038,1769015439493,-2000.0,0.00016723,2]
[402952040,1769015439502,-250.0,0.00016723,2]
[402952042,1769015439511,-211.227528,0.00016723,2]
[402952044,1769015439520,-500.0,0.00016723,2]
[402952046,1769015439530,-250.0,0.00016723,2]
[402952048,1769015439539,-250.0,0.00016723,2]
[402952050,1769015439549,-500.0,0.00016723,2]
[402952053,1769015439559,-500.0,0.00016723,2]
[402952055,1769015439568,-250.0,0.00016723,2]
[402952057,1769015439577,-500.0,0.00016723,2]
[402952059,1769015439587,-250.0,0.00016723,2]
[402952061,1769015439595,-500.0,0.00016723,2]
[402952063,1769015439605,-250.0,0.00016723,2]
[402952065,1769015439616,-500.0,0.00016723,2]
[402952067,1769015439626,-250.0,0.00016723,2]
[402952069,1769015439637,-250.0,0.00016723,2]
[402952071,1769015439647,-250.0,0.00016723,2]
[402952073,1769015439657,-1518.84634261,0.00016723,2]
[402952075,1769015439666,-250.0,0.00016723,2]
[402952077,1769015439676,-250.0,0.00016723,2]
[402952079,1769015439685,-250.0,0.00016723,2]
[402952081,1769015439694,-322.6107,0.00016723,2]
[402952083,1769015439703,-373.07297732,0.00016723,2]
[402952085,1769015439712,-250.0,0.00016723,2]
[402952087,1769015439721,-174.61919141,0.00016723,2]
[402952089,1769015439730,-250.0,0.00016723,2]
[402952091,1769015439740,-250.0,0.00016723,2]
[402952093,1769015439750,-250.0,0.00016723,2]
[402952095,1769015439759,-250.0,0.00016723,2]
[402952097,1769015439769,-250.0,0.00016723,2]
[402952099,1769015439779,-290.59400585,0.00016723,2]
[402952101,1769015439788,-500.0,0.00016723,2]
[402952103,1769015439798,-500.0,0.00016723,2]
[402952105,1769015439808,-151.0,0.00016723,2]
[402952107,1769015439818,-500.0,0.00016723,2]
[402952109,1769015439828,-151.0,0.00016723,2]
[402952111,1769015439838,-500.0,0.00016723,2]
[402952113,1769015439847,-151.0,0.00016723,2]
[402952115,1769015439857,-500.0,0.00016723,2]
[402952117,1769015439868,-151.0,0.00016723,2]
[402952119,1769015439877,-500.0,0.00016723,2]
[402952121,1769015439888,-151.0,0.00016723,2]
[402952123,1769015439897,-500.0,0.00016723,2]
[402952125,1769015439907,-151.0,0.00016723,2]
[402952127,1769015439917,-500.0,0.00016723,2]
[402952129,1769015439926,-500.0,0.00016723,2]
[402952131,1769015439936,-151.0,0.00016723,2]
[402952133,1769015439947,-250.0,0.00016723,2]
[402952136,1769015439956,-500.0,0.00016723,2]
[402952137,1769015439966,-151.0,0.00016723,2]
[402952139,1769015439975,-250.0,0.00016723,2]
[402952142,1769015439985,-151.0,0.00016723,2]
[402952144,1769015439994,-250.0,0.00016723,2]
[402952146,1769015440003,-500.0,0.00016723,2]
[402952147,1769015440012,-151.0,0.00016723,2]
[402952149,1769015440021,-250.0,0.00016723,2]
[402952151,1769015440031,-280.85509855,0.00016723,2]
[402952154,1769015440040,-151.0,0.00016723,2]
[402952156,1769015440050,-250.0,0.00016723,2]
[402952157,1769015440059,-151.0,0.00016723,2]
[402952159,1769015440068,-250.0,0.00016723,2]
[402952162,1769015440077,-151.0,0.00016723,2]
[402952163,1769015440087,-946.0,0.00016725,2]
[402952165,1769015440096,-415.05169828,0.00016738,2]
[402952167,1769015440105,-655.0,0.00016746,2]
[402952169,1769015440115,-689.0,0.00016746,2]
[402952171,1769015440124,-472.0,0.00016746,2]
[402952173,1769015440133,-500.0,0.00016746,2]
[402952175,1769015440143,-500.0,0.00016746,2]
[402952177,1769015440153,-500.0,0.00016746,2]
[402952178,1769015440162,-500.0,0.00016746,2]
[402952180,1769015440177,-1821.0,0.00016751,2]
[402952181,1769015440186,-1433.0,0.00016758,2]
[402952182,1769015440196,-7725.78573334,0.00016768,2]
[402952183,1769015440206,-16281.88274728,0.00016768,2]
[402952184,1769015440218,-1518.0,0.00016784,2]